Cogmind - Beta 10.2 @@@ ROGUE MODE // 2021.08.13 @ 20:25:58 Player: Demise Result: Destroyed by S-10 Pest with Light Assault Rifle Performance ------------- Evolutions (0) 0 Regions Visited (4) 800 Robots Destroyed (54) 270 Value Destroyed (775) 775 Prototype IDs (0) 0 Alien Tech Used (0) 0 Bonus (33) 33 TOTAL SCORE: 1878 Bonus ------- Follower Combat Kills 33 Cogmind --------- Core Integrity 0/250 Matter 243/300 Energy 100/100 System Corruption 0% Temperature Cool (0) Movement Core (600) Ox11 Location -9/Mines Parts ------- > --- POWER (1) -------- (None) > --- PROPULSION (2) --- (None) > --- UTILITY (2) ------ High-capacity Storage Unit Signal Interpreter > --- WEAPON (2) ------- Light Assault Rifle Heavy Assault Rifle > --- INVENTORY (12) --- High-capacity Storage Unit Large Matter Pod (150) Weight Redist. System Salvage Targeting Computer Armor Integrity Analyzer Light Armor Plating Light Armor Plating Bomb Drone Bay EM Pulse Gun Grenade Launcher Mining Laser Peak State ------------ > --- POWER ------------ Light Deuterium Engine > --- PROPULSION ------- Light Treads Light Treads > --- UTILITY ---------- High-capacity Storage Unit Signal Interpreter > --- WEAPON ----------- Assault Rifle Heavy Assault Rifle > --- INVENTORY -------- High-capacity Storage Unit Medium Matter Pod Weight Redist. System Armor Integrity Analyzer Light Armor Plating Light Armor Plating Bomb Drone Bay EM Pulse Gun Light Assault Rifle Grenade Launcher Mining Laser [Rating: 12] Favorites ----------- Power Light Deuterium Engine Engine Light Deuterium Engine Propulsion Light Treads Treads Light Treads Utility High-capacity Storage Unit Device Integration Mediator Storage High-capacity Storage Unit Processor Signal Interpreter Protection Utility Shielding Weapon Light Assault Rifle Energy Gun EM Pulse Gun Ballistic Gun Light Assault Rifle Launcher Grenade Launcher Build | -11 -10 -10 -10 -9 ------- Run | Scr Mat Min Exi Min Slots Evolved . | . . . . . Power . | . . . . . Propulsion . | . . . . . Utility . | . . . . . Weapon . | . . . . . Parts Attached 36 | 6 14 7 . 9 Power 5 | 1 1 3 . . Engine 5 | 1 1 3 . . Core . | . . . . . Reactor . | . . . . . Propulsion 5 | 2 1 1 . 1 Treads 5 | 2 1 1 . 1 Leg . | . . . . . Wheel . | . . . . . Hover . | . . . . . Flight . | . . . . . Utility 6 | 1 5 . . . Device 1 | . 1 . . . Storage 3 | 1 2 . . . Processor 1 | . 1 . . . Hackware . | . . . . . Protection 1 | . 1 . . . Artifact . | . . . . . Weapon 20 | 2 7 3 . 8 Energy Gun 2 | 1 1 . . . Energy Cannon . | . . . . . Ballistic Gun 13 | 1 4 3 . 5 Ballistic Cannon . | . . . . . Launcher 5 | . 2 . . 3 Special Weapon . | . . . . . Impact Weapon . | . . . . . Slashing Weapon . | . . . . . Piercing Weapon . | . . . . . Special Melee Weapon . | . . . . . Unidentified Prototypes . | . . . . . Parts Lost 6 | . 2 1 . 3 Power 1 | . . . . 1 Propulsion 3 | . 1 . . 2 Utility 1 | . 1 . . . Weapon 1 | . . 1 . . Highest Loss Streak 2 | . 1 1 . 2 Average Slot Usage (%) 90 | . 84 92 100 94 Engine 14 | . 14 14 14 14 Treads 20 | . 17 21 28 22 Storage 14 | . 14 14 14 14 Processor 11 | . 8 14 14 14 Ballistic Gun 27 | . 26 27 28 27 Naked Turns . | . . . . . Heaviest Build 42 | 12 41 42 42 42 Greatest Support 40 | 40 40 40 40 40 Greatest Overweight (x) 3 | 3 1 1 1 2 Average Overweight (x) . | . . . 1 1 Largest Inventory Capacity 12 | 6 12 12 12 12 Average Capacity 11 | 5 11 12 12 12 Most Carried 12 | 4 12 12 12 12 Average Carried 10 | 1 9 11 12 11 Final Capacity 12 | 6 12 12 12 12 Final Carried 12 | 4 12 12 12 12 Class Distribution -------------------- 52% | Mutant 47% | Scavenger-Mutant Dominant Class ---------------- Mutant | -10/Materials Scavenger-Mutant | -10/Mines Scavenger-Mutant | -10/Exiles Scavenger-Mutant | -9/Mines Resources | -11 -10 -10 -10 -9 ----------- Run | Scr Mat Min Exi Min Matter Collected 1067 | 365 390 109 . 203 Remotely . | . . . . . Salvage Created 1366 | 252 734 79 . 301 Parts 100 | 15 38 10 . 37 Haulers Intercepted 2 | . 2 . . . Recyclers Shooed 2 | . 2 . . . Parts Field Recycled . | . . . . . Retrieved Matter . | . . . . . Parts Self-Destructed . | . . . . . Prevented . | . . . . . Kills | -11 -10 -10 -10 -9 ------- Run | Scr Mat Min Exi Min Combat Hostiles Destroyed 34 | . 15 6 . 13 Guns 24 | . 13 6 . 5 AOE 10 | . 2 . . 8 Classes Destroyed 9 | 3 4 . . 2 Worker 5 | 2 2 . . 1 Builder 1 | . . . . 1 Tunneler 5 | 5 . . . . Hauler 2 | . 2 . . . Recycler 4 | 1 1 . . 2 Watcher 3 | . 3 . . . Swarmer 22 | . 6 6 . 10 Grunt 11 | . 9 . . 2 Duelist 1 | . . . . 1 Best Kill Streak 5 | 3 5 3 . 4 Combat Bots Only 5 | . 5 3 . 4 Max Kills in Single Turn 3 | 1 1 1 . 3 Gunslinging . | . . . . . Exploded 3 | . 1 . . 3 Melee . | . . . . . Uniques/NPCs Destroyed . | . . . . . Combat | -11 -10 -10 -10 -9 -------- Run | Scr Mat Min Exi Min Damage Taken 1411 | 18 568 123 . 702 Core 255 | . 62 20 . 173 Absorbed by Shields . | . . . . . Core Remaining (%) 100 | 100 . . . . Volleys Fired 140 | 34 66 11 . 29 Largest 2 | 2 2 2 . 2 Hottest 60 | 60 60 43 . 50 Shots Fired 275 | 68 129 20 . 58 Gun 263 | 68 124 20 . 51 Cannon . | . . . . . Launcher 12 | . 5 . . 7 Special . | . . . . . Kinetic 226 | 34 121 20 . 51 Thermal 3 | . 3 . . . Explosive 12 | . 5 . . 7 Electromagnetic 34 | 34 . . . . Robot Hit Streak 21 | 7 21 7 . 10 Robot Miss Streak 5 | 3 5 3 . 4 Penetration Max . | . . . . . Secondary Targets 7 | . 3 2 . 2 Max Gunslinging Chain 1 | . 1 1 . 1 Shots Hit Robots 174 | 43 80 14 . 37 Core Hits 85 | 13 41 7 . 24 Critical Hits . | . . . . . Critical Kills . | . . . . . Critical Parts Destroyed . | . . . . . Melee Attacks . | . . . . . Impact . | . . . . . Slashing . | . . . . . Piercing . | . . . . . Sneak Attacks . | . . . . . Combat Hostiles . | . . . . . Follow-up Attacks . | . . . . . Damage Inflicted 2505 | 471 933 131 . 970 Guns 1597 | 386 774 131 . 306 Cannons . | . . . . . Explosions 908 | 85 159 . . 664 Melee . | . . . . . Ramming . | . . . . . Kinetic 1340 | 142 761 131 . 306 Thermal 98 | 85 13 . . . Explosive 823 | . 159 . . 664 Electromagnetic 244 | 244 . . . . Impact . | . . . . . Slashing . | . . . . . Piercing . | . . . . . Highest Corruption . | . . . . . Average Corruption . | . . . . . Corruption Purged . | . . . . . Overload Shots . | . . . . . Overflow Damage 14 | 4 . . . 10 Projectiles . | . . . . . Explosions 14 | 4 . . . 10 Melee . | . . . . . Knockbacks . | . . . . . Impact . | . . . . . Kinetic . | . . . . . Secondary . | . . . . . Self-Inflicted Damage 75 | 18 . . . 57 Shots 3 | 1 . . . 2 Rammed 1 | . 1 . . . Targets Rammed 1 | . 1 . . . Kicked . | . . . . . Crushed . | . . . . . Highest Temperature 132 | 132 40 2 . 23 Average Temperature 35 | 59 9 1 . 5 Received Heat Transfer 192 | . 168 . . 24 Siege Activations . | . . . . . Robots Corrupted . | . . . . . Combat Hostiles . | . . . . . Parts Fried 1 | 1 . . . . Impact Corruptions . | . . . . . Robots Melted . | . . . . . Combat Hostiles . | . . . . . Parts Melted . | . . . . . Heat Transferred 125 | 100 25 . . . Parts Sabotaged . | . . . . . Parts Stolen . | . . . . . Parts Stripped . | . . . . . Power Chain Reactions 3 | 3 . . . . Missiles Intercepted . | . . . . . Alert | -11 -10 -10 -10 -9 ------- Run | Scr Mat Min Exi Min Peak Influence 277 | 40 277 172 . 185 Initial 42 | . 26 42 . . Average 74 | 18 124 45 . 43 Maximum Alert Level 1 | . 1 . . . Low Security (%) 96 | 100 91 100 . 100 Level 1 3 | . 8 . . . Level 2 . | . . . . . Level 3 . | . . . . . Level 4 . | . . . . . Level 5 . | . . . . . High Security . | . . . . . Max Security . | . . . . . Squads Dispatched 3 | . 3 . . . Investigation 3 | . 3 . . . Extermination . | . . . . . Reinforcement . | . . . . . Assault . | . . . . . Garrison . | . . . . . Intercept . | . . . . . Construction Impeded . | . . . . . Haulers Reinforced . | . . . . . Stealth | -11 -10 -10 -10 -9 --------- Run | Scr Mat Min Exi Min Distress Signals 1 | . 1 . . . Communications Jammed . | . . . . . Distress Signals . | . . . . . Times Spotted 48 | . 26 8 . 14 Peak Tracking Total 5 | . 5 3 . 4 Tactical Retreats 1 | . 1 . . . Traps | -11 -10 -10 -10 -9 ------- Run | Scr Mat Min Exi Min Traps Triggered 4 | . 4 . . . Indirectly . | . . . . . Trap Hack Attempts . | . . . . . Triggered . | . . . . . Disarmed . | . . . . . Reprogrammed . | . . . . . Reused . | . . . . . Traps Extracted . | . . . . . Installed . | . . . . . Triggered . | . . . . . Machines | -11 -10 -10 -10 -9 ---------- Run | Scr Mat Min Exi Min Machines Disabled . | . . . . . Max in Single Turn . | . . . . . Machines Sabotaged . | . . . . . Garrisons Compromised . | . . . . . Overloaded Fab Kills . | . . . . . Fab Network Shutdowns . | . . . . . Hacking | -11 -10 -10 -10 -9 --------- Run | Scr Mat Min Exi Min Machines Accessed 10 | . 8 1 1 . Terminals 5 | . 5 . . . Fabricators . | . . . . . Repair Stations 1 | . 1 . . . Recycling Units 2 | . 2 . . . Scanalyzers . | . . . . . Garrison Access . | . . . . . Total Hacks 41 | . 39 1 1 . Successful 22 | . 20 1 1 . Failed 19 | . 19 . . . Catastrophic 2 | . 2 . . . Database Lockouts . | . . . . . Manual 27 | . 27 . . . Terminals 23 | . 23 . . . Fabricators . | . . . . . Repair Stations 7 | . 7 . . . Recycling Units 9 | . 9 . . . Scanalyzers . | . . . . . Garrison Access . | . . . . . Terminal Hacks 8 | . 6 1 1 . Record 1 | . . . 1 . Part Schematic 2 | . 2 . . . Robot Analysis 2 | . 2 . . . Open Door 1 | . . 1 . . Terminal Index 1 | . 1 . . . Scanalyzer Index 1 | . 1 . . . Fabricator Hacks . | . . . . . Repair Station Hacks 6 | . 6 . . . Scan Component 3 | . 3 . . . Repair 3 | . 3 . . . Recycling Unit Hacks 3 | . 3 . . . Retrieve Matter 1 | . 1 . . . Retrieve Components 2 | . 2 . . . Scanalyzer . | . . . . . Garrison Access Hacks . | . . . . . Unauthorized Hacks 5 | . 5 . . . Terminals 2 | . 2 . . . Botnet 1 | . 1 . . . Operators 1 | . 1 . . . Fabricators . | . . . . . Repair Stations . | . . . . . Recycling Units 3 | . 3 . . . Reject 1 | . 1 . . . Recyclers 1 | . 1 . . . Mask 1 | . 1 . . . Scanalyzers . | . . . . . Garrison Access . | . . . . . Data Cores Recovered . | . . . . . Used . | . . . . . Hacking Detections 8 | . 8 . . . Full Trace Events 3 | . 3 . . . Feedback Events . | . . . . . Feedback Blocked . | . . . . . Robot Schematics Acquired . | . . . . . Robots Built . | . . . . . Matter . | . . . . . Time . | . . . . . Total Robot Build Rating . | . . . . . Part Schematics Acquired 2 | . 2 . . . Parts Built . | . . . . . Matter . | . . . . . Time . | . . . . . Total Part Build Rating . | . . . . . Parts Repaired 3 | . 3 . . . Time 84 | . 84 . . . Parts Recycled . | . . . . . Recycled Matter . | . . . . . Retrieved Matter . | . . . . . Retrieved Components 2 | . 2 . . . Parts Scanalyzed . | . . . . . Part Schematics Acquired . | . . . . . Parts Damaged . | . . . . . Bothacking | -11 -10 -10 -10 -9 ------------ Run | Scr Mat Min Exi Min Used RIF Installer . | . . . . . Robots Hacked . | . . . . . Non-combat . | . . . . . Combat . | . . . . . Robot Hacks Applied . | . . . . . Relay Couplers Released . | . . . . . Robots Rewired . | . . . . . Allies Hacked . | . . . . . Hacks Repelled . | . . . . . Allies | -11 -10 -10 -10 -9 -------- Run | Scr Mat Min Exi Min Total Allies 2 | . . 2 . . Largest Group 2 | . . 2 2 . Highest-Rated Group 39 | . . 39 39 . Highest-Rated Ally 31 | . . 31 31 . Total Orders . | . . . . . Ally Attacks 1 | . . 1 . . Total Damage 21 | . . 21 . . Kills 1 | . . 1 . . Allies Corrupted . | . . . . . Allies Melted . | . . . . . Intel | -11 -10 -10 -10 -9 ------- Run | Scr Mat Min Exi Min Robot Analysis Total 2 | . 2 . . . Derelict Logs Recovered 2 | . . 1 . 1 Drone Launches . | . . . . . Drone Recoveries . | . . . . . Exploration | -11 -10 -10 -10 -9 ------------- Run | Scr Mat Min Exi Min Turns Passed 4416 | 174 1586 1104 330 1222 Spaces Moved 2138 | 46 731 576 184 601 Core 12 | 12 . . . . Treads 2126 | 34 731 576 184 601 Legs . | . . . . . Wheels . | . . . . . Hover . | . . . . . Flight . | . . . . . Fastest Speed 50 | 50 160 160 180 180 Average Speed 179 | 145 174 179 180 186 Slowest Speed 200 | 200 180 180 180 200 Overloaded Moves . | . . . . . Propulsion Burnouts . | . . . . . Robots Hopped . | . . . . . Cave-ins Triggered . | . . . . . Exploration Rate (%) 68 | 3 98 96 59 84 Regions Visited 4 Branch Regions 3 Pre-discovered Areas 2 | . . 1 1 . Known Exits Taken 3 | . 1 1 1 . Unknown Exits Taken 1 | 1 . . . . Scrap Searched 4 | . . 1 . 3 Spaces Dug 10 | . 10 . . . Terrain Destroyed 93 | 8 28 . . 57 Melee . | . . . . . Projectile . | . . . . . AOE 93 | 8 28 . . 57 Terrain Rammed . | . . . . . Walls Destroyed . | . . . . . Machines Disabled . | . . . . . Actions | -11 -10 -10 -10 -9 --------- Run | Scr Mat Min Exi Min Total 2479 | 89 928 630 185 647 Wait 114 | . 89 21 . 4 Move 2134 | 45 730 575 183 601 Hop . | . . . . . Pick Up 31 | 4 20 5 1 1 Fast Attach 18 | 6 6 5 . 1 Attach . | . . . . . Detach . | . . . . . Swap 18 | . 8 2 . 8 Drop 23 | . 8 11 1 3 Fire 140 | 34 66 11 . 29 Melee . | . . . . . Ram . | . . . . . Kick . | . . . . . Crush 1 | . 1 . . . Escape Stasis . | . . . . . Rewire . | . . . . . Trap . | . . . . . Miscellaneous . | . . . . . Route ------- -11/Scrapyard -10/Materials (discovered 4 exits: *Mat x3 / *Min) -10/Mines (discovered 3 exits: *Mat x2 / *Exi) -10/Exiles -9/Mines (discovered 2 exits: *Mat x2) History --------- Turn | Location | Event 16 | -11/Scrapyard | Discovered new exit (range 14) 175 | -11/Scrapyard | Entered Materials 307 | -10/Materials | Build established: Mutant 479 | -10/Materials | Discovered new exit (range 9) 566 | -10/Materials | Discovered new exit (range 12) 675 | -10/Materials | Discovered new exit (range 10) 837 | -10/Materials | Identified exit to Mines 1103 | -10/Materials | Discovered new exit (range 16) 1148 | -10/Materials | Identified exit to Materials 1396 | -10/Materials | Repaired Lgt. Treads 1430 | -10/Materials | Repaired Armor Integrity Analyzer 1457 | -10/Materials | Repaired Hcp. Storage Unit 1761 | -10/Materials | Entered Mines 1762 | -10/Mines | Assembled infested the area 1778 | -10/Mines | Discovered new exit (range 5) 1811 | -10/Mines | Met a Derelict bent on vengeance 1880 | -10/Mines | Met 8R-AWN 1917 | -10/Mines | Identified exit to Exiles 2027 | -10/Mines | Discovered exit to Materials (range 9) 2086 | -10/Mines | Discovered exit to Materials (range 11) 2288 | -10/Mines | Joined a pair of Derelicts in attacking an 0b10 outpost 2511 | -10/Mines | Found the Drone Emporium 2520 | -10/Mines | Found Prototype Device 2559 | -10/Mines | Learned location of Mines (-9) 2609 | -10/Mines | Build established: Scavenger-Mutant 2865 | -10/Mines | Entered Exiles 2865 | -10/Exiles | Accompanied by 2 allies 2895 | -10/Exiles | Led the pair of lost Derelicts to a safe place 2907 | -10/Exiles | Welcomed by 8R-AWN 2939 | -10/Exiles | Met EX-HEX 3024 | -10/Exiles | Met EX-DEC 3058 | -10/Exiles | Met EX-BIN 3089 | -10/Exiles | Learned location of Zion (-7) 3179 | -10/Exiles | Discovered new exit (range 11) 3194 | -10/Exiles | Identified exit to Mines 3195 | -10/Exiles | Entered Mines 3255 | -9/Mines | Learned location of 1 exit from Materials 3348 | -9/Mines | Discovered new exit (range 4) 3351 | -9/Mines | Identified exit to Materials 3580 | -9/Mines | Discovered exit to Materials (range 8) 3982 | -9/Mines | Core integrity fell below 50% 4000 | -9/Mines | Core integrity fell below 20% 4417 | -9/Mines | Destroyed by S-10 Pest with Light Assault Rifle Last Messages --------------- 04026_ Dropped Lgt. Assault Rifle. 04030_ K-01 Serf collects debris. 04030_ R-06 Scavenger collects Aluminum Leg. 04031_ R-06 Scavenger collects Com. Wheel. 04034_ K-01 Serf collects debris. 04034_ Acquired 27 matter. 04038_ K-01 Serf collects debris. 04113_ Searching scrap... 04113_ Found Seismic Analyzer. 04113_ Found Particle Gun. 04113_ Found 15 Matter. 04114_ Acquired 15 matter. 04227_ U-05 Engineer builds a Wall. 04395_ Lgt. Treads destroyed. 04396_ S-10 Pest destroyed. 04401_ Switching to secondary target: S-10 Pest. 04404_ S-10 Pest destroyed. 04404_ Switching to secondary target: S-10 Pest. 04405_ Acquired 16 matter. 04412_ Lgt. Deuterium Engine destroyed. Map ----- +----------------------------------------------------+ | | | | | | | | | | | | | | | | | | | | | | | | | | | | | ??????????????????????????????????? | | ??????????????????????????????????? | | ??????????????????????????????????? | | ??????????????????????????????????? | | ???###????????????????????????????? | | ???# ????????????????????????????# | | ???# ?????????????????????????### | | ???# ???????????????????????## | | ???? =?????????????????????## | | ??????""s###??????????????????# | | ????????*%=#??????????????????## | | ?????????#@#???????????????????# ## | | ?????????#[#???????????????????# #? | | ?????????# #???????????????????# #? | | ?????????# #???????????????????# #? | | ?????????# #???????????????????# #? | | ?????????# #???????????????????# #? | | ?????????# #??###??????????????# #? | | ?????????# #?## ??????????????# #? | | ?????????# ### ??????????????# #? | | ?????????# ## ???????????#### #? | | ?????????# # ##?????????# #? | | ?????????# # #######???# ###? | | ?????????# ## ##??# #??? | | ?????????# #??# #### #### | | ?????????# #???# ## # | | ??######## #????# | | ??# ## #????# # | | ??# """ ## ###### ##### | | ??# """ #???## # | | ??# """ ######### #????## ## | | ??# #???????# #?????# #? | | ??# #???????# #?????## #? | | ??#######???????# ##?????### ## | | ???????????###### ## #??###== # | | ???????????# #??# ##=[ # | +----------------------------------------------------+ Best States ------------- Heat Dissipation 25 Energy Generation 14 Energy Capacity 250 Matter Stores 300 Matter Capacity 300 Sight Range 16 Terrain Scan Density 10 Evasion (%) 40 Recoil Reduction 2 Item Schematics ----------------- Hcp. Storage Unit | -10/Materials | Hacked Med. Storage Unit | -10/Materials | Hacked Robot Schematics ------------------ None Fabricated ------------ Nothing Alien Tech Used ----------------- None Achievements -------------- None Challenges ------------ None Game ------ Seed MetafieldVariablePick Manual? 0 Play Time 00:20:50 Cumulative 476.4 hours Start 2021.08.13 @ 20:08:00 End 2021.08.13 @ 20:25:58 Sessions 1 Manual Loads 0 Difficulty Rogue Special Mode None Game No. 377 Rogue 377 Adventurer 0 Explorer 0 Win Type - Total 3 Types 2/0/0/1/0/0/0/0/0 Lore% 74 Gallery% 84 Achievement% 66 Wizard Run 0 Options --------- ASCII 0 Keyboard 1 Movement Numpad Keybinds 0 Fullscreen 1 Font 12/Terminus Map View 83x54 Tactical HUD 1 Map Filters NONE Filters NONE Steam 1 RUN: 199aceb7-9d23-4d51-badf-98d7230009a6